fUST/lending_fUST_20260413
["ID","MTS","AMOUNT","RATE_DAILY","PERIOD"]
[420395650,1776078651519,-3000.0,0.0001378,30]
[420395651,1776078651540,-3000.0,0.0001379,30]
[420395652,1776078651553,-500.0,0.00013794,2]
[420395653,1776078651582,-500.0,0.00013794,2]
[420395654,1776078651606,-500.0,0.00013794,2]
[420395655,1776078651621,-500.0,0.00013794,2]
[420395656,1776078651636,-177.94767712,0.00013794,2]
[420395657,1776078651670,-3000.0,0.000138,30]
[420395658,1776078651680,-1544.47,0.00013808,2]
[420395659,1776078651690,-500.0,0.00013808,2]
[420395660,1776078651710,-5094.404895,0.0001381,30]
[420395661,1776078651732,-500.0,0.00013869,2]
[420395662,1776078651742,-500.0,0.00013869,2]
[420395663,1776078651776,-500.0,0.00013869,2]
[420395664,1776078651802,-5686.48,0.00013869,2]
[420395665,1776078651826,-782.76,0.00013869,2]
[420395666,1776078651930,-777.54,0.00013869,2]
[420395667,1776078651946,-1175.208325,0.00013966,2]
[420395668,1776078651966,-500.0,0.00014068,2]
[420395669,1776078651983,-500.0,0.00014068,2]
[420395670,1776078651994,-500.0,0.00014068,2]
[420395671,1776078652006,-500.0,0.00014068,2]
[420395672,1776078652036,-205.7032219,0.00014073,2]
[420395673,1776078652048,-155.0,0.00014073,2]
[420395674,1776078652067,-155.0,0.00014073,2]
[420395675,1776078652083,-1544.47,0.00014082,2]
[420395676,1776078652093,-500.0,0.00014082,2]
[420395677,1776078652117,-500.0,0.00014143,2]
[420395678,1776078652149,-500.0,0.00014143,2]
[420395679,1776078652170,-500.0,0.00014143,2]
[420395680,1776078652187,-5686.48,0.00014143,2]
[420395681,1776078652198,-782.76,0.00014143,2]
[420395682,1776078652215,-777.54,0.00014143,2]
[420395683,1776078652227,-648.0,0.00014191,2]
[420395684,1776078652236,-155.0,0.00014191,2]
[420395685,1776078652246,-340.0,0.00014191,2]
[420395686,1776078652267,-648.0,0.00014191,2]
[420395687,1776078652277,-153.94944058,0.00014191,2]
[420395688,1776078652287,-340.0,0.00014191,2]
[420395689,1776078652314,-648.0,0.00014191,2]
[420395690,1776078652326,-648.0,0.00014191,2]
[420395691,1776078652337,-340.0,0.00014191,2]
[420395692,1776078652350,-648.0,0.00014191,2]
[420395693,1776078652363,-340.0,0.00014191,2]
[420395694,1776078652379,-648.0,0.00014191,2]
[420395695,1776078652390,-648.0,0.00014191,2]
[420395696,1776078652405,-340.0,0.00014191,2]
[420395697,1776078652420,-648.0,0.00014191,2]
[420395698,1776078652445,-340.0,0.00014191,2]
[420395699,1776078652455,-648.0,0.00014191,2]
[420395700,1776078652465,-340.0,0.00014191,2]
[420395701,1776078652485,-648.0,0.00014191,2]
[420395702,1776078652501,-340.0,0.00014191,2]
[420395703,1776078652511,-648.0,0.00014191,2]
[420395704,1776078652536,-340.0,0.00014191,2]
[420395705,1776078652549,-648.0,0.00014191,2]
[420395706,1776078652569,-340.0,0.00014191,2]
[420395707,1776078652612,-648.0,0.00014191,2]
[420395708,1776078652628,-648.0,0.00014191,2]
[420395709,1776078652644,-340.0,0.00014191,2]
[420395710,1776078652656,-648.0,0.00014191,2]
[420395711,1776078652672,-340.0,0.00014191,2]
[420395712,1776078652687,-648.0,0.00014191,2]
[420395713,1776078652697,-340.0,0.00014191,2]
[420395714,1776078652708,-648.0,0.00014191,2]
[420395715,1776078652735,-340.0,0.00014191,2]
[420395716,1776078652745,-648.0,0.00014191,2]
[420395717,1776078652761,-340.0,0.00014191,2]
[420395718,1776078652772,-648.0,0.00014191,2]
[420395719,1776078652783,-340.0,0.00014191,2]
[420395720,1776078652795,-648.0,0.00014191,2]
[420395721,1776078652811,-648.0,0.00014191,2]
[420395722,1776078652821,-340.0,0.00014191,2]
[420395723,1776078652831,-648.0,0.00014191,2]
[420395724,1776078652841,-340.0,0.00014191,2]
[420395725,1776078652857,-648.0,0.00014191,2]
[420395726,1776078652867,-648.0,0.00014191,2]
[420395727,1776078652879,-648.0,0.00014191,2]
[420395728,1776078652892,-648.0,0.00014191,2]
[420395729,1776078652918,-179.0,0.00014191,2]
[420395730,1776078652929,-648.0,0.00014191,2]
[420395731,1776078652939,-179.0,0.00014191,2]
[420395732,1776078652958,-648.0,0.00014191,2]
[420395733,1776078652974,-180.31214911,0.00014191,2]
[420395734,1776078652988,-648.0,0.00014191,2]
[420395735,1776078653019,-323.22924378,0.00014191,2]
[420395736,1776078653031,-300.80477,0.00014191,2]
[420395737,1776078653078,-2000.0,0.00014216,2]
[420395738,1776078653100,-1000.0,0.00014221,2]
[420395739,1776078653114,-1000.0,0.00014221,2]
[420395740,1776078653132,-1000.0,0.00014221,2]
[420395741,1776078653162,-1000.0,0.00014247,2]
[420395742,1776078653173,-554.29670914,0.00014247,2]
[420395743,1776078653199,-1000.0,0.00014247,2]
[420395744,1776078653210,-1000.0,0.00014247,2]
[420395745,1776078653222,-662.53858703,0.00014247,2]
[420395746,1776078653245,-507.61146775,0.00014247,2]
[420395747,1776078653258,-1000.0,0.00014247,2]
[420395748,1776078653268,-150.63416806,0.00014247,2]
[420395749,1776078653286,-477.81467739,0.00014247,2]
[420395750,1776078653296,-1000.0,0.00014247,2]
[420395751,1776078653307,-504.28734136,0.00014247,2]
[420395752,1776078653317,-875.64284619,0.00014247,2]
[420395753,1776078653328,-1000.0,0.00014247,2]
[420395754,1776078653338,-152.84235292,0.00014247,2]
[420395755,1776078653351,-1000.0,0.00014247,2]
[420395756,1776078653365,-600.0,0.00014278,2]
[420395757,1776078653375,-228.406886,0.00014324,7]
[420395758,1776078653387,-160.0,0.00014324,7]
[420395759,1776078653398,-251.017063,0.00014324,7]
[420395760,1776078653409,-342.034127,0.00014324,7]
[420395761,1776078653421,-500.0,0.00014342,2]
[420395762,1776078653434,-500.0,0.00014342,2]
[420395763,1776078653448,-500.0,0.00014342,2]
[420395764,1776078653460,-500.0,0.00014342,2]
[420395765,1776078653477,-1544.47,0.00014356,2]
[420395766,1776078653511,-500.0,0.00014356,2]
[420395767,1776078653522,-500.0,0.00014417,2]
[420395768,1776078653541,-500.0,0.00014417,2]
[420395769,1776078653551,-500.0,0.00014417,2]
[420395770,1776078653565,-5686.48,0.00014417,2]
[420395771,1776078653579,-782.76,0.00014417,2]
[420395772,1776078653603,-777.54,0.00014417,2]
[420395773,1776078653613,-218.81639683,0.00014438,2]
[420395774,1776078653645,-3942.41955508,0.00014527,2]
[420395775,1776078653676,-722.70586066,0.00014527,2]
[420395776,1776078653686,-500.0,0.00014616,2]
[420395777,1776078653720,-500.0,0.00014616,2]
[420395778,1776078653732,-500.0,0.00014616,2]
[420395779,1776078653766,-500.0,0.00014616,2]
[420395780,1776078653776,-155.0,0.00014618,2]
[420395781,1776078653801,-340.0,0.00014618,2]
[420395782,1776078653830,-340.0,0.00014618,2]
[420395783,1776078653845,-340.0,0.00014618,2]
[420395784,1776078653861,-340.0,0.00014618,2]
[420395785,1776078653871,-340.0,0.00014618,2]
[420395786,1776078653885,-340.0,0.00014618,2]
[420395787,1776078653919,-340.0,0.00014618,2]
[420395788,1776078653928,-340.0,0.00014618,2]
[420395789,1776078653942,-340.0,0.00014618,2]
[420395790,1776078653975,-340.0,0.00014618,2]
[420395791,1776078653987,-340.0,0.00014618,2]
[420395792,1776078654005,-340.0,0.00014618,2]
[420395793,1776078654033,-340.0,0.00014618,2]
[420395794,1776078654043,-340.0,0.00014618,2]
[420395795,1776078654053,-340.0,0.00014618,2]
[420395796,1776078654062,-340.0,0.00014618,2]
[420395797,1776078654081,-340.0,0.00014618,2]
[420395798,1776078654091,-340.0,0.00014618,2]
[420395799,1776078654103,-340.0,0.00014618,2]
[420395800,1776078654126,-340.0,0.00014618,2]
[420395801,1776078654135,-340.0,0.00014618,2]
[420395802,1776078654145,-340.0,0.00014618,2]
[420395803,1776078654157,-340.0,0.00014618,2]
[420395804,1776078654169,-340.0,0.00014618,2]
[420395805,1776078654178,-340.0,0.00014618,2]
[420395806,1776078654188,-340.0,0.00014618,2]
[420395807,1776078654200,-340.0,0.00014618,2]
[420395808,1776078654210,-340.0,0.00014618,2]
[420395809,1776078654220,-340.0,0.00014618,2]
[420395810,1776078654230,-340.0,0.00014618,2]
[420395811,1776078654243,-340.0,0.00014618,2]
[420395812,1776078654254,-340.0,0.00014618,2]
[420395813,1776078654264,-340.0,0.00014618,2]
[420395814,1776078654275,-340.0,0.00014618,2]
[420395815,1776078654286,-340.0,0.00014618,2]
[420395816,1776078654296,-340.0,0.00014618,2]
[420395817,1776078654316,-340.0,0.00014618,2]
[420395818,1776078654326,-340.0,0.00014618,2]
[420395819,1776078654337,-340.0,0.00014618,2]
[420395820,1776078654349,-340.0,0.00014618,2]
[420395821,1776078654360,-340.0,0.00014618,2]
[420395822,1776078654380,-340.0,0.00014618,2]
[420395823,1776078654393,-340.0,0.00014618,2]
[420395824,1776078654420,-340.0,0.00014618,2]
[420395825,1776078654430,-340.0,0.00014618,2]
[420395826,1776078654457,-340.0,0.00014618,2]
[420395827,1776078654484,-340.0,0.00014618,2]
[420395828,1776078654494,-340.0,0.00014618,2]
[420395829,1776078654503,-340.0,0.00014618,2]
[420395830,1776078654527,-340.0,0.00014618,2]
[420395831,1776078654537,-340.0,0.00014618,2]
[420395832,1776078654547,-340.0,0.00014618,2]
[420395833,1776078654572,-340.0,0.00014618,2]
[420395834,1776078654586,-340.0,0.00014618,2]
[420395835,1776078654597,-340.0,0.00014618,2]
[420395836,1776078654612,-340.0,0.00014618,2]
[420395837,1776078654622,-340.0,0.00014618,2]
[420395838,1776078654635,-374.24813214,0.00014618,2]
[420395839,1776078654651,-340.0,0.00014618,2]
[420395840,1776078654662,-1544.47,0.0001463,2]
[420395841,1776078654686,-500.0,0.0001463,2]
[420395842,1776078654696,-1177.33933313,0.0001465,2]
[420395843,1776078654706,-500.0,0.00014691,2]
[420395844,1776078654726,-500.0,0.00014691,2]
[420395845,1776078654736,-500.0,0.00014691,2]
[420395846,1776078654746,-5686.48,0.00014691,2]
[420395847,1776078654770,-782.76,0.00014691,2]
[420395848,1776078654780,-777.54,0.00014691,2]
[420395849,1776078654791,-11076.3566644,0.00014756,2]
[420395850,1776078654812,-2500.0,0.00014764,2]
[420395851,1776078654822,-1500.0,0.00014768,2]
[420395852,1776078654832,-1500.0,0.00014768,2]
[420395853,1776078654850,-1010.32964791,0.00014795,2]
[420395854,1776078654874,-1005.67457454,0.00014795,2]
[420395855,1776078654884,-1500.0,0.00014795,2]
[420395856,1776078654895,-1500.0,0.00014795,2]
[420395857,1776078654909,-781.23933054,0.00014795,2]
[420395858,1776078654920,-1007.47122401,0.00014795,2]
[420395859,1776078654931,-1500.0,0.00014795,2]
[420395860,1776078654941,-500.0,0.0001489,2]
[420395861,1776078654954,-500.0,0.0001489,2]
[420395862,1776078654965,-500.0,0.0001489,2]
[420395863,1776078654977,-500.0,0.0001489,2]
[420395864,1776078654987,-1544.47,0.00014904,2]
[420395865,1776078655003,-500.0,0.00014904,2]
[420395866,1776078655013,-500.0,0.00014965,2]
[420395867,1776078655024,-500.0,0.00014965,2]
[420395868,1776078655041,-500.0,0.00014965,2]
[420395869,1776078655051,-5686.48,0.00014965,2]
[420395870,1776078655061,-782.76,0.00014965,2]
[420395871,1776078655075,-777.54,0.00014965,2]
[420395872,1776078655093,-774.0,0.00015,2]
[420395873,1776078655103,-421.0,0.00015,2]
[420395874,1776078655115,-220.0,0.00015,2]
[420395875,1776078655131,-201.75340544,0.00015,2]
[420395876,1776078655141,-800.0,0.00015033,2]
[420395877,1776078655158,-342.295995,0.0001504,7]
[420395878,1776078655175,-1784.5915123,0.00015068,2]
[420395879,1776078655190,-800.0,0.00015137,2]
[420395880,1776078655217,-500.0,0.00015164,2]
[420395881,1776078655229,-500.0,0.00015164,2]
[420395882,1776078655255,-500.0,0.00015164,2]
[420395883,1776078655269,-500.0,0.00015164,2]
[420395884,1776078655281,-1544.47,0.00015178,2]
[420395885,1776078655292,-500.0,0.00015178,2]
[420395886,1776078655308,-2471.4692364,0.0001522,2]
[420395887,1776078655322,-500.0,0.00015239,2]
[420395888,1776078655334,-500.0,0.00015239,2]
[420395889,1776078655348,-500.0,0.00015239,2]
[420395890,1776078655375,-5686.48,0.00015239,2]
[420395891,1776078655387,-782.76,0.00015239,2]
[420395892,1776078655397,-777.54,0.00015239,2]
[420395893,1776078655407,-1175.208325,0.00015255,2]
[420395894,1776078655423,-3000.0,0.00015312,2]
[420395895,1776078655434,-2000.0,0.00015316,2]
[420395896,1776078655447,-2000.0,0.00015316,2]
[420395897,1776078655473,-153.73691309,0.00015335,2]
[420395898,1776078655484,-2000.0,0.00015342,2]
[420395899,1776078655494,-2000.0,0.00015342,2]
[420395900,1776078655523,-1501.34524194,0.00015342,2]
[420395901,1776078655562,-967.53386369,0.00015393,2]
[420395902,1776078655583,-160.0,0.00015399,2]
[420395903,1776078655609,-383.23508698,0.00015412,2]
[420395904,1776078655621,-500.0,0.00015438,2]
[420395905,1776078655675,-500.0,0.00015438,2]
[420395906,1776078655685,-500.0,0.00015438,2]
[420395907,1776078655699,-500.0,0.00015438,2]
[420395908,1776078655712,-1544.47,0.00015452,2]
[420395909,1776078655724,-500.0,0.00015452,2]
[420395910,1776078655734,-500.0,0.00015513,2]
[420395911,1776078655745,-500.0,0.00015513,2]
[420395912,1776078655761,-500.0,0.00015513,2]
[420395913,1776078655773,-5686.48,0.00015513,2]
[420395914,1776078655783,-782.76,0.00015513,2]
[420395915,1776078655801,-777.54,0.00015513,2]
[420395916,1776078655811,-196.3595236,0.00015523,2]
[420395917,1776078655822,-196.2863731,0.00015527,2]
[420395918,1776078655842,-9144.69266131,0.0001567,2]
[420395919,1776078655856,-720.0,0.00015706,2]
[420395920,1776078655872,-500.0,0.00015712,2]
[420395921,1776078655893,-500.0,0.00015712,2]
[420395922,1776078655903,-500.0,0.00015712,2]
[420395923,1776078655915,-500.0,0.00015712,2]
[420395924,1776078655941,-1544.47,0.00015726,2]
[420395925,1776078655962,-500.0,0.00015726,2]
[420395926,1776078655974,-500.0,0.00015787,2]
[420395927,1776078655985,-500.0,0.00015787,2]
[420395928,1776078656000,-500.0,0.00015787,2]
[420395929,1776078656012,-5686.48,0.00015787,2]
[420395930,1776078656029,-782.76,0.00015787,2]
[420395931,1776078656043,-777.54,0.00015787,2]
[420395932,1776078656067,-3500.0,0.0001586,2]
[420395933,1776078656077,-2500.0,0.00015864,2]
[420395934,1776078656092,-2500.0,0.00015864,2]
[420395935,1776078656119,-2099.03722283,0.0001589,2]
[420395936,1776078656129,-1650.06032116,0.0001589,2]
[420395937,1776078656140,-219.71006827,0.00015975,30]
[420395938,1776078656152,-500.0,0.00015986,2]
[420395939,1776078656167,-500.0,0.00015986,2]
[420395940,1776078656200,-500.0,0.00015986,2]
[420395941,1776078656219,-500.0,0.00015986,2]
[420395942,1776078656244,-5077.0,0.00016,2]
[420395943,1776078656285,-200000.0,0.00016,2]
[420395944,1776078656299,-500.0,0.00016,2]
[420395945,1776078656318,-3000.0,0.00016,2]
[420395946,1776078656335,-1544.47,0.00016,2]
[420395947,1776078656353,-500.0,0.00016,2]
[420395948,1776078656383,-3000.0,0.0001601,2]
[420395949,1776078656400,-3000.0,0.0001602,2]
[420395950,1776078656442,-3000.0,0.0001603,2]
[420395951,1776078656468,-3000.0,0.0001604,2]
[420395952,1776078656494,-3000.0,0.0001605,2]
[420395953,1776078656504,-3000.0,0.0001606,2]
[420395954,1776078656513,-500.0,0.00016061,2]
[420395955,1776078656543,-500.0,0.00016061,2]
[420395956,1776078656554,-500.0,0.00016061,2]
[420395957,1776078656564,-5686.48,0.00016061,2]
[420395958,1776078656574,-782.76,0.00016061,2]
[420395959,1776078656592,-777.54,0.00016061,2]
[420395960,1776078656602,-3000.0,0.0001607,2]
[420395961,1776078656612,-3000.0,0.0001608,2]
[420395962,1776078656625,-3000.0,0.0001609,2]
[420395963,1776078656644,-500.0,0.000161,2]
[420395964,1776078656654,-3000.0,0.000161,2]
[420395965,1776078656664,-3000.0,0.0001611,2]
[420395966,1776078656680,-3000.0,0.0001612,2]
[420395967,1776078656690,-3000.0,0.0001613,2]
[420395968,1776078656700,-3000.0,0.0001614,2]
[420395969,1776078656710,-3000.0,0.0001615,2]
[420395970,1776078656725,-3000.0,0.0001616,2]
[420395971,1776078656735,-227.23,0.00016164,2]
[420395972,1776078656746,-3000.0,0.0001617,2]
[420395973,1776078656757,-3000.0,0.0001618,2]
[420395974,1776078656770,-3000.0,0.0001619,2]
[420395975,1776078656780,-911.3419165,0.00016196,2]
[420395976,1776078656792,-3000.0,0.000162,2]
[420395977,1776078656817,-3000.0,0.0001621,2]
[420395978,1776078656828,-3000.0,0.0001622,2]
[420395979,1776078656838,-1612.14112781,0.0001623,2]
[420395980,1776078657002,-1387.85887219,0.0001623,2]
[420395981,1776078657012,-3000.0,0.0001624,2]
[420395982,1776078657045,-3000.0,0.0001625,2]
[420395983,1776078657057,-3000.0,0.0001626,2]
[420395984,1776078657086,-500.0,0.0001626,2]
[420395985,1776078657097,-500.0,0.0001626,2]
[420395986,1776078657107,-501.55,0.0001626,2]
[420395987,1776078657119,-3000.0,0.0001627,2]
[420395988,1776078657131,-1544.47,0.00016274,2]
[420395989,1776078657152,-500.0,0.00016274,2]
[420395990,1776078657163,-3000.0,0.0001628,2]
[420395991,1776078657173,-215.54586856,0.00016289,14]
[420395992,1776078657188,-3000.0,0.0001629,2]
[420395993,1776078657198,-3000.0,0.000163,2]
[420395994,1776078657211,-500.0,0.000163,2]
[420395995,1776078657223,-183.54407995,0.000163,2]
[420395996,1776078657244,-500.0,0.000163,2]
[420395997,1776078657254,-3000.0,0.0001631,2]
[420395998,1776078657268,-3000.0,0.0001632,2]
[420395999,1776078657284,-3000.0,0.0001633,2]
[420396000,1776078657312,-500.0,0.00016335,2]
[420396001,1776078657333,-500.0,0.00016335,2]
[420396002,1776078657352,-500.0,0.00016335,2]
[420396003,1776078657381,-5686.48,0.00016335,2]
[420396004,1776078657392,-782.76,0.00016335,2]
[420396005,1776078657420,-777.54,0.00016335,2]
[420396006,1776078657431,-3000.0,0.0001634,2]
[420396007,1776078657473,-195.6270171,0.00016345,2]
[420396008,1776078657483,-3000.0,0.0001635,2]
[420396009,1776078657502,-3000.0,0.0001636,2]
[420396010,1776078657519,-3000.0,0.0001637,2]
[420396011,1776078657529,-3000.0,0.0001638,2]
[420396012,1776078657541,-3000.0,0.0001639,2]
[420396013,1776078657566,-3000.0,0.000164,2]
[420396014,1776078657581,-2492.35065173,0.00016408,2]
[420396015,1776078657597,-3000.0,0.0001641,2]
[420396016,1776078657608,-2954.19716668,0.00016412,2]
[420396017,1776078657623,-3000.0,0.00016412,2]
[420396018,1776078657639,-3000.0,0.0001642,2]
[420396019,1776078657649,-3000.0,0.0001643,2]
[420396020,1776078657663,-153.68177881,0.00016438,7]
[420396021,1776078657682,-250.0,0.00016438,3]
[420396022,1776078657694,-647.281625,0.00016438,2]
[420396023,1776078657862,-647.281625,0.00016438,2]
[420396024,1776078657874,-647.281625,0.00016438,2]
[420396025,1776078657884,-647.281625,0.00016438,2]
[420396026,1776078657895,-647.281625,0.00016438,2]
[420396027,1776078657914,-647.281625,0.00016438,2]
[420396028,1776078657938,-647.281625,0.00016438,2]
[420396029,1776078657947,-647.281625,0.00016438,2]
[420396030,1776078657964,-647.281625,0.00016438,2]
[420396031,1776078657974,-647.281625,0.00016438,2]
[420396032,1776078657991,-647.281625,0.00016438,2]
[420396033,1776078658001,-647.281625,0.00016438,2]
[420396034,1776078658011,-647.281625,0.00016438,2]
[420396035,1776078658023,-647.281625,0.00016438,2]
[420396036,1776078658038,-647.281625,0.00016438,2]
[420396037,1776078658047,-647.281625,0.00016438,2]
[420396038,1776078658058,-647.281625,0.00016438,2]
[420396039,1776078658070,-647.281625,0.00016438,2]
[420396040,1776078658085,-647.281625,0.00016438,2]
[420396041,1776078658108,-647.281625,0.00016438,2]
[420396042,1776078658123,-3000.0,0.0001644,2]
[420396043,1776078658134,-3000.0,0.0001645,2]
[420396044,1776078658150,-3000.0,0.0001646,2]
[420396045,1776078658160,-502.01051334,0.00016462,2]
[420396046,1776078658170,-500.74724024,0.00016462,2]
[420396047,1776078658185,-500.0,0.00016462,2]
[420396048,1776078658199,-254.31582188,0.00016462,2]
[420396049,1776078658209,-500.0,0.00016462,2]
[420396050,1776078658220,-500.0,0.00016462,2]
[420396051,1776078658232,-503.70676663,0.00016462,2]
[420396052,1776078658245,-165.72336661,0.00016462,2]
[420396053,1776078658255,-500.0,0.00016462,2]
[420396054,1776078658265,-178.47928713,0.00016462,2]
[420396055,1776078658277,-503.27113757,0.00016462,2]
[420396056,1776078658290,-500.0,0.00016462,2]
[420396057,1776078658299,-500.0,0.00016462,2]
[420396058,1776078658309,-500.0,0.00016462,2]
[420396059,1776078658321,-500.0,0.00016462,2]
[420396060,1776078658334,-500.0,0.00016462,2]
[420396061,1776078658357,-160.39065236,0.00016462,2]
[420396062,1776078658367,-500.0,0.00016462,2]
[420396063,1776078658383,-530.17340906,0.00016462,2]
[420396064,1776078658392,-500.0,0.00016462,2]
[420396065,1776078658402,-500.0,0.00016462,2]
[420396066,1776078658413,-504.00786418,0.00016462,2]
[420396067,1776078658429,-500.0,0.00016462,2]
[420396068,1776078658439,-500.0,0.00016462,2]
[420396069,1776078658450,-500.0,0.00016462,2]
[420396070,1776078658468,-311.38110075,0.00016462,2]
[420396071,1776078658478,-500.0,0.00016462,2]
[420396072,1776078658489,-500.0,0.00016462,2]
[420396073,1776078658499,-502.04095419,0.00016462,2]
[420396074,1776078658516,-500.0,0.00016462,2]
[420396075,1776078658526,-3000.0,0.0001647,2]
[420396076,1776078658538,-177.993917,0.00016472,7]
[420396077,1776078658551,-153.64894742,0.00016475,60]
[420396078,1776078658572,-3000.0,0.0001648,2]
[420396079,1776078658591,-500.0,0.00016488,2]
[420396080,1776078658613,-3000.0,0.0001649,2]
[420396081,1776078658630,-3000.0,0.000165,2]
[420396082,1776078658642,-3000.0,0.0001651,2]
[420396083,1776078658654,-3000.0,0.0001652,2]
[420396084,1776078658670,-3000.0,0.0001653,2]
[420396085,1776078658693,-500.0,0.00016534,2]
[420396086,1776078658703,-500.0,0.00016534,2]
[420396087,1776078658714,-3000.0,0.0001654,2]
[420396088,1776078658729,-1175.208325,0.00016543,2]
[420396089,1776078658748,-1544.47,0.00016548,2]
[420396090,1776078658758,-500.0,0.00016548,2]
[420396091,1776078658780,-3000.0,0.0001655,2]
[420396092,1776078658791,-153.68177881,0.00016557,7]
[420396093,1776078658803,-3000.0,0.0001656,2]
[420396094,1776078658822,-150.14886585,0.0001656,14]
[420396095,1776078658851,-5185.035706,0.0001657,2]
[420396096,1776078658864,-500.0,0.00016609,2]
[420396097,1776078658890,-500.0,0.00016609,2]
[420396098,1776078658899,-201.42123564,0.00016609,2]
[420396099,1776078658914,-5686.48,0.00016609,2]
[420396100,1776078658938,-782.76,0.00016609,2]
[420396101,1776078658950,-777.54,0.00016609,2]
[420396102,1776078658961,-219.71006827,0.00016722,30]
[420396103,1776078658983,-178.19514787,0.00016763,14]
[420396104,1776078658993,-500.0,0.00016808,2]
[420396105,1776078659012,-500.0,0.00016808,2]
[420396106,1776078659027,-1544.47,0.00016822,2]
[420396107,1776078659057,-500.0,0.00016822,2]
[420396108,1776078659069,-1000.0,0.00016848,2]
[420396109,1776078659082,-1000.0,0.00016848,2]
[420396110,1776078659103,-500.0,0.00016883,2]
[420396111,1776078659114,-500.0,0.00016883,2]
[420396112,1776078659126,-5686.48,0.00016883,2]
[420396113,1776078659152,-782.76,0.00016883,2]
[420396114,1776078659197,-777.54,0.00016883,2]
[420396115,1776078659212,-3500.0,0.0001696,2]
[420396116,1776078659249,-153.68177881,0.00016986,7]
[420396117,1776078659280,-153.68177881,0.00016986,7]
[420396118,1776078659332,-22053.02834758,0.00017,2]
[420396119,1776078659359,-874.14444355,0.00017,2]
[420396120,1776078659895,-1388.079611,0.00013699,2]
[420396121,1776078659915,-1388.079611,0.00013699,2]
[420396122,1776078659927,-1012.91113163,0.00013699,2]
[420396123,1776078659944,-375.16847937,0.00013699,2]
[420396124,1776078659954,-22.02152063,0.00013699,2]
[420396125,1776078660127,-1366.05809037,0.00013699,2]
[420396126,1776078660143,-1388.079611,0.00013699,2]
[420396127,1776078660153,-1388.079611,0.00013699,2]
[420396128,1776078660163,-1388.079611,0.00013699,2]
[420396129,1776078660183,-1388.079611,0.00013699,2]
[420396130,1776078660193,-1388.079611,0.00013699,2]
[420396131,1776078660203,-1388.079611,0.00013699,2]
[420396132,1776078660224,-1388.079611,0.00013699,2]
[420396133,1776078660235,-1388.079611,0.00013699,2]
[420396134,1776078660246,-833.496606,0.00013699,2]
[420396135,1776078660265,-1388.079611,0.00013699,2]
[420396136,1776078660281,-1388.079611,0.00013699,2]
[420396137,1776078660291,-1388.079611,0.00013699,2]
[420396138,1776078660301,-1388.079607,0.00013699,2]
[420396139,1776078660310,-160.0,0.00014461,7]
[420396140,1776078660326,-319.344498,0.00014461,7]
[420396141,1776078660336,-177072.82720887,0.00017,2]
[420396142,1776078660346,-500.0,0.00017,2]
[420396143,1776078660355,-1014.30525116,0.00017009,2]
[420396144,1776078660368,-787.34796965,0.00017009,2]
[420396145,1776078660378,-1000.0,0.00017009,2]
[420396146,1776078660388,-1119.73815116,0.00017009,2]
[420396147,1776078660401,-1000.0,0.00017009,2]
[420396148,1776078660411,-953.8282493,0.00017009,2]
[420396149,1776078660421,-1000.0,0.00017009,2]